fUST/lending_fUST_20260115
["ID","MTS","AMOUNT","RATE_DAILY","PERIOD"]
[402032552,1768488639708,-500.0,0.00021917,2]
[402032553,1768488639718,-747.11,0.00021917,2]
[402032554,1768488639729,-911.17,0.00021917,2]
[402032555,1768488639738,-500.0,0.00021917,2]
[402032556,1768488639748,-604.55,0.00021917,2]
[402032557,1768488639757,-500.0,0.00021917,2]
[402032558,1768488639767,-1220.89,0.00021917,2]
[402032559,1768488639777,-500.0,0.00021917,2]
[402032560,1768488639786,-500.0,0.00021917,2]
[402032561,1768488639795,-500.0,0.00021917,2]
[402032562,1768488639806,-500.0,0.00021917,2]
[402032563,1768488639817,-551.51,0.00021917,2]
[402032564,1768488639829,-500.0,0.00021917,2]
[402032565,1768488639838,-500.0,0.00021917,2]
[402032566,1768488639847,-500.0,0.00021917,2]
[402032567,1768488639856,-500.0,0.00021917,2]
[402032568,1768488639866,-1488.67,0.00021917,2]
[402032569,1768488639875,-712.34,0.00021917,2]
[402032571,1768488639885,-500.0,0.00021917,2]
[402032573,1768488639894,-500.0,0.00021917,2]
[402032574,1768488639904,-500.0,0.00021917,2]
[402032575,1768488639914,-837.71,0.00021917,2]
[402032577,1768488639923,-500.0,0.00021917,2]
[402032579,1768488639932,-767.28,0.00021917,2]
[402032580,1768488639942,-500.0,0.00021917,2]
[402032581,1768488639951,-774.48,0.00021917,2]
[402032582,1768488639960,-1102.81,0.00021917,2]
[402032583,1768488639969,-500.0,0.00021917,2]
[402032584,1768488639979,-604.7,0.00021917,2]
[402032586,1768488639988,-500.0,0.00021917,2]
[402032588,1768488639997,-500.0,0.00021917,2]
[402032589,1768488640007,-864.86,0.00021917,2]
[402032591,1768488640017,-558.74,0.00021917,2]
[402032592,1768488640026,-500.0,0.00021917,2]
[402032593,1768488640036,-500.0,0.00021917,2]
[402032594,1768488640046,-500.0,0.00021917,2]
[402032595,1768488640056,-500.0,0.00021917,2]
[402032596,1768488640065,-500.0,0.00021917,2]
[402032597,1768488640074,-500.0,0.00021917,2]
[402032598,1768488640086,-500.0,0.00021917,2]
[402032599,1768488640096,-928.86,0.00021917,2]
[402032601,1768488640106,-500.0,0.00021917,2]
[402032603,1768488640116,-497.96244779,0.00021917,2]
[402032604,1768488640126,-1101.0825062,0.00021917,2]
[402032605,1768488640135,-500.0,0.00021917,2]
[402032606,1768488640145,-500.0,0.00021917,2]
[402032607,1768488640155,-1106.0,0.00021917,2]
[402032608,1768488640165,-549.44,0.00021917,2]
[402032609,1768488640175,-500.0,0.00021917,2]
[402032610,1768488640185,-532.22859027,0.00021917,2]
[402032611,1768488640195,-1446.43,0.00021917,2]
[402032612,1768488640204,-500.0,0.00021917,2]
[402032613,1768488640214,-1502.77,0.00021917,2]
[402032615,1768488640224,-926.02,0.00021917,2]
[402032616,1768488640234,-500.0,0.00021917,2]
[402032618,1768488640244,-539.79432605,0.00021917,2]
[402032620,1768488640253,-500.0,0.00021917,2]
[402032621,1768488640263,-500.0,0.00021917,2]
[402032622,1768488640273,-500.0,0.00021917,2]
[402032623,1768488640283,-930.69,0.00021917,2]
[402032625,1768488640293,-1022.48,0.00021917,2]
[402032627,1768488640304,-500.0,0.00021917,2]
[402032629,1768488640313,-1808.9,0.00021917,2]
[402032630,1768488640323,-500.0,0.00021917,2]
[402032631,1768488640335,-254.8308466,0.00021917,2]
[402032632,1768488640345,-2019.34,0.00021917,2]
[402032633,1768488640354,-1477.97,0.00021917,2]
[402032634,1768488640363,-500.0,0.00021917,2]
[402032635,1768488640373,-500.0,0.00021917,2]
[402032636,1768488640383,-500.0,0.00021917,2]
[402032637,1768488640392,-500.0,0.00021917,2]
[402032638,1768488640402,-729.41,0.00021917,2]
[402032640,1768488640411,-500.0,0.00021917,2]
[402032642,1768488640422,-500.0,0.00021917,2]
[402032644,1768488640431,-500.0,0.00021917,2]
[402032645,1768488640441,-500.0,0.00021917,2]
[402032646,1768488640450,-500.0,0.00021917,2]
[402032647,1768488640460,-566.00053475,0.00021917,2]
[402032648,1768488640470,-500.0,0.00021917,2]
[402032649,1768488640480,-611.77,0.00021917,2]
[402032650,1768488640556,-500.0,0.00021917,2]
[402032651,1768488640566,-500.0,0.00021917,2]
[402032652,1768488640578,-500.0,0.00021917,2]
[402032653,1768488640587,-500.0,0.00021917,2]
[402032654,1768488640597,-500.0,0.00021917,2]
[402032655,1768488640610,-1060.92,0.00021917,2]
[402032656,1768488640619,-500.0,0.00021917,2]
[402032657,1768488640629,-1069.51,0.00021917,2]
[402032658,1768488640638,-1578.12,0.00021917,2]
[402032659,1768488640648,-500.0,0.00021917,2]
[402032660,1768488640657,-500.0,0.00021917,2]
[402032661,1768488640666,-500.0,0.00021917,2]
[402032662,1768488640675,-500.0,0.00021917,2]
[402032663,1768488640685,-500.0,0.00021917,2]
[402032664,1768488640694,-695.06,0.00021917,2]
[402032665,1768488640703,-525.36331059,0.00021917,2]
[402032666,1768488640712,-500.0,0.00021917,2]
[402032667,1768488640721,-500.0,0.00021917,2]
[402032668,1768488640731,-500.0,0.00021917,2]
[402032669,1768488640740,-826.52,0.00021917,2]
[402032670,1768488640750,-500.0,0.00021917,2]
[402032671,1768488640759,-500.0,0.00021917,2]
[402032672,1768488640768,-500.0,0.00021917,2]
[402032673,1768488640778,-500.0,0.00021917,2]
[402032674,1768488640787,-500.0,0.00021917,2]
[402032675,1768488640798,-500.0,0.00021917,2]
[402032676,1768488640807,-572.62,0.00021917,2]
[402032677,1768488640816,-390.07453759,0.00021917,2]
[402032678,1768488640828,-500.0,0.00021917,2]
[402032679,1768488640837,-559.65,0.00021917,2]
[402032680,1768488640846,-641.29,0.00021917,2]
[402032681,1768488640856,-500.0,0.00021917,2]
[402032682,1768488640865,-500.0,0.00021917,2]
[402032683,1768488640874,-534.54,0.00021917,2]
[402032684,1768488640885,-500.0,0.00021917,2]
[402032685,1768488640895,-500.0,0.00021917,2]
[402032686,1768488640904,-500.0,0.00021917,2]
[402032687,1768488640913,-500.0,0.00021917,2]
[402032688,1768488640923,-716.6,0.00021917,2]
[402032689,1768488640932,-500.0,0.00021917,2]
[402032690,1768488640941,-500.0,0.00021917,2]
[402032691,1768488640950,-556.54,0.00021917,2]
[402032692,1768488640959,-500.0,0.00021917,2]
[402032693,1768488640968,-500.0,0.00021917,2]
[402032694,1768488640978,-713.77,0.00021917,2]
[402032695,1768488640988,-573.90863361,0.00021917,2]
[402032696,1768488640997,-500.0,0.00021917,2]
[402032697,1768488641006,-500.0,0.00021917,2]
[402032698,1768488641015,-500.0,0.00021917,2]
[402032699,1768488641024,-575.34,0.00021917,2]
[402032700,1768488641034,-500.0,0.00021917,2]
[402032701,1768488641043,-500.0,0.00021917,2]
[402032702,1768488641053,-500.0,0.00021917,2]
[402032703,1768488641062,-585.94,0.00021917,2]
[402032704,1768488641071,-649.71,0.00021917,2]
[402032705,1768488641083,-1318.64,0.00021917,2]
[402032706,1768488641092,-500.0,0.00021917,2]
[402032707,1768488641101,-576.15597893,0.00021917,2]
[402032708,1768488641111,-657.28,0.00021917,2]
[402032709,1768488641120,-500.0,0.00021917,2]
[402032710,1768488641130,-744.17,0.00021917,2]
[402032711,1768488641140,-500.0,0.00021917,2]
[402032712,1768488641149,-500.0,0.00021917,2]
[402032713,1768488641158,-500.0,0.00021917,2]
[402032714,1768488641167,-500.0,0.00021917,2]
[402032715,1768488641176,-500.0,0.00021917,2]
[402032716,1768488641185,-524.17,0.00021917,2]
[402032717,1768488641195,-500.0,0.00021917,2]
[402032718,1768488641204,-500.0,0.00021917,2]
[402032719,1768488641213,-204.6282951,0.00021917,2]
[402032720,1768488641222,-1127.92,0.00021917,2]
[402032721,1768488641232,-873.56,0.00021917,2]
[402032722,1768488641241,-916.28,0.00021917,2]
[402032723,1768488641250,-972.62,0.00021917,2]
[402032724,1768488641259,-617.54,0.00021917,2]
[402032725,1768488641269,-500.0,0.00021917,2]
[402032726,1768488641278,-500.0,0.00021917,2]
[402032727,1768488641288,-500.0,0.00021917,2]
[402032728,1768488641297,-684.26,0.00021917,2]
[402032729,1768488641307,-500.0,0.00021917,2]
[402032730,1768488641317,-2507.13,0.00021917,2]
[402032731,1768488641326,-500.0,0.00021917,2]
[402032732,1768488641336,-500.0,0.00021917,2]
[402032733,1768488641345,-500.0,0.00021917,2]
[402032734,1768488641355,-500.0,0.00021917,2]
[402032735,1768488641365,-500.0,0.00021917,2]
[402032736,1768488641374,-500.0,0.00021917,2]
[402032737,1768488641383,-500.0,0.00021917,2]
[402032738,1768488641393,-500.0,0.00021917,2]
[402032739,1768488641402,-775.86,0.00021917,2]
[402032740,1768488641412,-812.18,0.00021917,2]
[402032741,1768488641422,-500.0,0.00021917,2]
[402032742,1768488641432,-500.0,0.00021917,2]
[402032743,1768488641442,-500.0,0.00021917,2]
[402032744,1768488641451,-2262.65,0.00021917,2]
[402032745,1768488641460,-500.0,0.00021917,2]
[402032746,1768488641470,-500.0,0.00021917,2]
[402032747,1768488641480,-500.0,0.00021917,2]
[402032748,1768488641490,-1476.84,0.00021917,2]
[402032749,1768488641500,-1233.61,0.00021917,2]
[402032750,1768488641509,-500.0,0.00021917,2]
[402032751,1768488641518,-1008.85,0.00021917,2]
[402032752,1768488641527,-500.0,0.00021917,2]
[402032753,1768488641536,-500.0,0.00021917,2]
[402032754,1768488641546,-500.0,0.00021917,2]
[402032755,1768488641556,-500.0,0.00021917,2]
[402032756,1768488641566,-811.72,0.00021917,2]
[402032757,1768488641576,-500.0,0.00021917,2]
[402032758,1768488641586,-500.0,0.00021917,2]
[402032759,1768488641597,-896.18,0.00021917,2]
[402032760,1768488641608,-500.0,0.00021917,2]
[402032761,1768488641617,-500.0,0.00021917,2]
[402032762,1768488641626,-500.0,0.00021917,2]
[402032763,1768488641634,-1225.14,0.00021917,2]
[402032764,1768488641644,-625.33,0.00021917,2]
[402032765,1768488641654,-500.0,0.00021917,2]
[402032766,1768488641663,-500.0,0.00021917,2]
[402032767,1768488641675,-1974.62,0.00021917,2]
[402032768,1768488641684,-500.0,0.00021917,2]
[402032769,1768488641695,-500.0,0.00021917,2]
[402032770,1768488641704,-500.0,0.00021917,2]
[402032771,1768488641714,-500.0,0.00021917,2]
[402032772,1768488641723,-635.87416189,0.00021917,2]
[402032773,1768488641732,-500.0,0.00021917,2]
[402032774,1768488641742,-693.95,0.00021917,2]
[402032775,1768488641751,-500.0,0.00021917,2]
[402032776,1768488641760,-662.56,0.00021917,2]
[402032777,1768488641769,-500.0,0.00021917,2]
[402032778,1768488641779,-500.0,0.00021917,2]
[402032779,1768488641788,-500.0,0.00021917,2]
[402032780,1768488641798,-1674.06,0.00021917,2]
[402032781,1768488641807,-1162.11,0.00021917,2]
[402032782,1768488641817,-500.0,0.00021917,2]
[402032783,1768488641827,-500.0,0.00021917,2]
[402032784,1768488641836,-543.33,0.00021917,2]
[402032785,1768488641846,-1297.14,0.00021917,2]
[402032786,1768488641854,-1487.13,0.00021917,2]
[402032787,1768488641863,-550.48,0.00021917,2]
[402032788,1768488641872,-500.0,0.00021917,2]
[402032789,1768488641881,-603.08,0.00021917,2]
[402032790,1768488641890,-1807.65,0.00021917,2]
[402032791,1768488641899,-500.0,0.00021917,2]
[402032792,1768488641909,-500.0,0.00021917,2]
[402032793,1768488641918,-500.0,0.00021917,2]
[402032794,1768488641927,-500.0,0.00021917,2]
[402032795,1768488641936,-500.0,0.00021917,2]
[402032796,1768488641946,-500.0,0.00021917,2]
[402032797,1768488641955,-500.0,0.00021917,2]
[402032798,1768488641965,-500.0,0.00021917,2]
[402032799,1768488641974,-500.0,0.00021917,2]
[402032800,1768488641982,-500.0,0.00021917,2]
[402032801,1768488641992,-562.05,0.00021917,2]
[402032802,1768488642001,-500.0,0.00021917,2]
[402032803,1768488642010,-500.0,0.00021917,2]
[402032804,1768488642020,-500.0,0.00021917,2]
[402032805,1768488642030,-500.0,0.00021917,2]
[402032806,1768488642039,-500.0,0.00021917,2]
[402032807,1768488642048,-500.0,0.00021917,2]
[402032808,1768488642057,-500.0,0.00021917,2]
[402032809,1768488642067,-500.0,0.00021917,2]
[402032810,1768488642078,-500.0,0.00021917,2]
[402032811,1768488642088,-500.0,0.00021917,2]
[402032812,1768488642097,-500.0,0.00021917,2]
[402032813,1768488642106,-500.0,0.00021917,2]
[402032814,1768488642116,-500.0,0.00021917,2]
[402032815,1768488642126,-628.68,0.00021917,2]
[402032816,1768488642135,-500.0,0.00021917,2]
[402032817,1768488642144,-930.12,0.00021917,2]
[402032818,1768488642154,-1277.93,0.00021917,2]
[402032819,1768488642163,-500.0,0.00021917,2]
[402032820,1768488642172,-500.0,0.00021917,2]
[402032821,1768488642182,-500.0,0.00021917,2]
[402032822,1768488642191,-500.0,0.00021917,2]
[402032823,1768488642201,-500.0,0.00021917,2]
[402032824,1768488642210,-500.0,0.00021917,2]
[402032825,1768488642219,-500.0,0.00021917,2]
[402032826,1768488642229,-595.88,0.00021917,2]
[402032827,1768488642238,-500.0,0.00021917,2]
[402032828,1768488642247,-1031.93,0.00021917,2]
[402032829,1768488642257,-500.0,0.00021917,2]
[402032830,1768488642266,-500.0,0.00021917,2]
[402032831,1768488642276,-500.0,0.00021917,2]
[402032832,1768488642285,-500.0,0.00021917,2]
[402032833,1768488642295,-500.0,0.00021917,2]
[402032834,1768488642304,-1404.79,0.00021917,2]
[402032835,1768488642313,-500.0,0.00021917,2]
[402032836,1768488642323,-500.0,0.00021917,2]
[402032837,1768488642334,-644.72,0.00021917,2]
[402032838,1768488642344,-500.0,0.00021917,2]
[402032839,1768488642353,-1288.3,0.00021917,2]
[402032840,1768488642363,-500.0,0.00021917,2]
[402032841,1768488642372,-500.0,0.00021917,2]
[402032842,1768488642382,-1186.64,0.00021917,2]
[402032843,1768488642391,-1108.76,0.00021917,2]
[402032844,1768488642400,-500.0,0.00021917,2]
[402032845,1768488642410,-500.0,0.00021917,2]
[402032846,1768488642419,-2592.03,0.00021917,2]
[402032847,1768488642428,-1641.32,0.00021917,2]
[402032848,1768488642437,-500.0,0.00021917,2]
[402032849,1768488642447,-545.91,0.00021917,2]
[402032850,1768488642456,-500.0,0.00021917,2]
[402032851,1768488642465,-500.0,0.00021917,2]
[402032852,1768488642474,-500.0,0.00021917,2]
[402032853,1768488642483,-500.0,0.00021917,2]
[402032854,1768488642492,-585.5,0.00021917,2]
[402032855,1768488642502,-527.88,0.00021917,2]
[402032856,1768488642511,-500.0,0.00021917,2]
[402032857,1768488642520,-500.0,0.00021917,2]
[402032858,1768488642529,-1062.12,0.00021917,2]
[402032859,1768488642539,-500.0,0.00021917,2]
[402032860,1768488642547,-500.0,0.00021917,2]
[402032861,1768488642557,-500.0,0.00021917,2]
[402032862,1768488642565,-956.48,0.00021917,2]
[402032863,1768488642574,-500.0,0.00021917,2]
[402032864,1768488642583,-621.67,0.00021917,2]
[402032865,1768488642592,-500.94,0.00021917,2]
[402032866,1768488642601,-1074.85,0.00021917,2]
[402032867,1768488642613,-500.0,0.00021917,2]
[402032868,1768488642622,-734.99,0.00021917,2]
[402032869,1768488642631,-500.0,0.00021917,2]
[402032870,1768488642639,-1831.89,0.00021917,2]
[402032872,1768488642648,-500.0,0.00021917,2]
[402032873,1768488642658,-500.0,0.00021917,2]
[402032875,1768488642667,-500.0,0.00021917,2]
[402032877,1768488642676,-500.0,0.00021917,2]
[402032878,1768488642686,-807.6,0.00021917,2]
[402032879,1768488642695,-749.7,0.00021917,2]
[402032880,1768488642704,-887.31,0.00021917,2]
[402032881,1768488642713,-500.0,0.00021917,2]
[402032882,1768488642721,-1866.23,0.00021917,2]
[402032883,1768488642730,-1415.94,0.00021917,2]
[402032884,1768488642739,-500.0,0.00021917,2]
[402032885,1768488642748,-500.0,0.00021917,2]
[402032886,1768488642757,-500.0,0.00021917,2]
[402032887,1768488642766,-1611.95,0.00021917,2]
[402032888,1768488642775,-754.09,0.00021917,2]
[402032889,1768488642784,-1947.39,0.00021917,2]
[402032890,1768488642793,-960.57,0.00021917,2]
[402032891,1768488642802,-835.75,0.00021917,2]
[402032892,1768488642811,-547.98,0.00021917,2]
[402032894,1768488642820,-616.26,0.00021917,2]
[402032895,1768488642829,-500.0,0.00021917,2]
[402032897,1768488642838,-500.0,0.00021917,2]
[402032898,1768488642847,-629.47,0.00021917,2]
[402032899,1768488642856,-500.0,0.00021917,2]
[402032900,1768488642865,-500.0,0.00021917,2]
[402032901,1768488642874,-500.0,0.00021917,2]
[402032902,1768488642882,-976.29,0.00021917,2]
[402032903,1768488642891,-500.0,0.00021917,2]
[402032904,1768488642900,-576.4,0.00021917,2]
[402032905,1768488642909,-500.0,0.00021917,2]
[402032906,1768488642921,-919.63,0.00021917,2]
[402032907,1768488642930,-680.52,0.00021917,2]
[402032908,1768488642939,-500.0,0.00021917,2]
[402032909,1768488642947,-780.48,0.00021917,2]
[402032910,1768488642956,-500.0,0.00021917,2]
[402032911,1768488642965,-641.85,0.00021917,2]
[402032912,1768488642974,-1305.56,0.00021917,2]
[402032913,1768488642983,-500.0,0.00021917,2]
[402032914,1768488642993,-500.0,0.00021917,2]
[402032915,1768488643002,-500.0,0.00021917,2]
[402032916,1768488643011,-500.0,0.00021917,2]
[402032918,1768488643021,-500.0,0.00021917,2]
[402032920,1768488643030,-500.0,0.00021917,2]
[402032922,1768488643039,-500.0,0.00021917,2]
[402032924,1768488643047,-1551.94,0.00021917,2]
[402032926,1768488643056,-500.0,0.00021917,2]
[402032928,1768488643065,-500.0,0.00021917,2]
[402032930,1768488643074,-627.71,0.00021917,2]
[402032932,1768488643084,-917.38,0.00021917,2]
[402032934,1768488643092,-500.0,0.00021917,2]
[402032936,1768488643101,-1201.29,0.00021917,2]
[402032938,1768488643112,-500.0,0.00021917,2]
[402032940,1768488643121,-976.69,0.00021917,2]
[402032942,1768488643130,-500.0,0.00021917,2]
[402032944,1768488643139,-500.0,0.00021917,2]
[402032946,1768488643148,-500.0,0.00021917,2]
[402032948,1768488643157,-500.0,0.00021917,2]
[402032950,1768488643166,-500.0,0.00021917,2]
[402032952,1768488643175,-500.0,0.00021917,2]
[402032954,1768488643184,-732.78,0.00021917,2]
[402032956,1768488643193,-500.0,0.00021917,2]
[402032958,1768488643202,-1045.09,0.00021917,2]
[402032960,1768488643211,-500.0,0.00021917,2]
[402032962,1768488643219,-500.0,0.00021917,2]
[402032963,1768488643228,-500.0,0.00021917,2]
[402032966,1768488643237,-738.24,0.00021917,2]
[402032968,1768488643246,-500.0,0.00021917,2]
[402032969,1768488643255,-500.0,0.00021917,2]
[402032971,1768488643265,-500.0,0.00021917,2]
[402032973,1768488643275,-500.0,0.00021917,2]
[402032975,1768488643285,-687.03,0.00021917,2]
[402032977,1768488643294,-500.0,0.00021917,2]
[402032979,1768488643303,-500.0,0.00021917,2]
[402032981,1768488643311,-500.0,0.00021917,2]
[402032983,1768488643321,-500.0,0.00021917,2]
[402032985,1768488643332,-1765.18,0.00021917,2]
[402032987,1768488643341,-500.0,0.00021917,2]
[402032989,1768488643350,-500.0,0.00021917,2]
[402032991,1768488643359,-1123.21,0.00021917,2]
[402032993,1768488643368,-608.95,0.00021917,2]
[402032995,1768488643377,-500.0,0.00021917,2]
[402032997,1768488643387,-675.03,0.00021917,2]
[402032999,1768488643396,-500.0,0.00021917,2]
[402033001,1768488643406,-500.0,0.00021917,2]
[402033003,1768488643415,-981.25,0.00021917,2]
[402033005,1768488643424,-500.0,0.00021917,2]
[402033007,1768488643434,-500.0,0.00021917,2]
[402033009,1768488643443,-1173.87,0.00021917,2]
[402033012,1768488643452,-500.0,0.00021917,2]
[402033014,1768488643461,-500.0,0.00021917,2]
[402033017,1768488643470,-500.0,0.00021917,2]
[402033020,1768488643479,-500.0,0.00021917,2]
[402033021,1768488643489,-753.71,0.00021917,2]
[402033023,1768488643498,-500.0,0.00021917,2]
[402033025,1768488643507,-500.0,0.00021917,2]
[402033027,1768488643516,-500.0,0.00021917,2]
[402033029,1768488643526,-500.0,0.00021917,2]
[402033031,1768488643536,-500.0,0.00021917,2]
[402033034,1768488643546,-500.0,0.00021917,2]
[402033036,1768488643555,-500.0,0.00021917,2]
[402033038,1768488643565,-500.0,0.00021917,2]
[402033040,1768488643574,-1475.7,0.00021917,2]
[402033042,1768488643584,-500.0,0.00021917,2]
[402033044,1768488643594,-500.0,0.00021917,2]
[402033046,1768488643603,-500.0,0.00021917,2]
[402033048,1768488643615,-500.0,0.00021917,2]
[402033049,1768488643624,-815.49,0.00021917,2]
[402033052,1768488643634,-1411.01,0.00021917,2]
[402033054,1768488643644,-1078.9,0.00021917,2]
[402033056,1768488643653,-500.0,0.00021917,2]
[402033058,1768488643662,-500.0,0.00021917,2]
[402033059,1768488643671,-500.0,0.00021917,2]
[402033061,1768488643680,-500.0,0.00021917,2]
[402033063,1768488643690,-6041.69,0.00021917,2]
[402033065,1768488643699,-1007.65,0.00021917,2]
[402033067,1768488643708,-617.10878648,0.00021917,2]
[402033069,1768488643718,-464.47289974,0.00021917,2]
[402033071,1768488643728,-882.53,0.00021917,2]
[402033073,1768488643737,-1098.63,0.00021917,2]
[402033075,1768488643746,-500.0,0.00021917,2]
[402033077,1768488643755,-500.0,0.00021917,2]
[402033079,1768488643764,-727.22,0.00021917,2]
[402033081,1768488643773,-949.83,0.00021917,2]
[402033083,1768488643782,-500.0,0.00021917,2]
[402033085,1768488643791,-500.0,0.00021917,2]
[402033087,1768488643800,-500.0,0.00021917,2]
[402033089,1768488643810,-500.0,0.00021917,2]
[402033091,1768488643819,-1855.88,0.00021917,2]
[402033093,1768488643829,-500.0,0.00021917,2]
[402033095,1768488643838,-500.0,0.00021917,2]
[402033097,1768488643847,-768.15,0.00021917,2]
[402033099,1768488643856,-500.0,0.00021917,2]
[402033101,1768488643865,-500.0,0.00021917,2]
[402033103,1768488643875,-500.0,0.00021917,2]
[402033105,1768488643883,-151.0,0.00021917,2]
[402033107,1768488643892,-500.0,0.00021917,2]
[402033109,1768488643901,-500.0,0.00021917,2]
[402033111,1768488643910,-500.0,0.00021917,2]
[402033113,1768488643919,-857.07,0.00021917,2]
[402033115,1768488643928,-500.0,0.00021917,2]
[402033117,1768488643938,-715.3,0.00021917,2]
[402033119,1768488643947,-500.0,0.00021917,2]
[402033121,1768488643956,-500.0,0.00021917,2]
[402033123,1768488643966,-500.0,0.00021917,2]
[402033125,1768488643975,-500.0,0.00021917,2]
[402033127,1768488643984,-182.237864,0.00021917,2]
[402033129,1768488643994,-500.0,0.00021917,2]
[402033131,1768488644003,-500.0,0.00021917,2]
[402033133,1768488644012,-500.0,0.00021917,2]
[402033135,1768488644022,-772.48,0.00021917,2]
[402033137,1768488644031,-500.0,0.00021917,2]
[402033139,1768488644040,-500.0,0.00021917,2]
[402033141,1768488644050,-2925.73,0.00021917,2]
[402033143,1768488644060,-1548.73,0.00021917,2]
[402033145,1768488644069,-1673.14,0.00021917,2]
[402033147,1768488644081,-1431.92,0.00021917,2]
[402033149,1768488644090,-1068.15,0.00021917,2]
[402033151,1768488644099,-1009.01,0.00021917,2]
[402033153,1768488644108,-500.0,0.00021917,2]
[402033155,1768488644117,-500.0,0.00021917,2]
[402033157,1768488644126,-500.0,0.00021917,2]
[402033159,1768488644136,-500.0,0.00021917,2]
[402033161,1768488644145,-500.0,0.00021917,2]
[402033163,1768488644154,-501.32290502,0.00021917,2]
[402033165,1768488644163,-575.55,0.00021917,2]
[402033167,1768488644172,-500.0,0.00021917,2]
[402033169,1768488644181,-500.0,0.00021917,2]
[402033171,1768488644190,-1046.43,0.00021917,2]
[402033173,1768488644199,-1094.99,0.00021917,2]
[402033175,1768488644208,-500.0,0.00021917,2]
[402033177,1768488644217,-500.0,0.00021917,2]
[402033179,1768488644226,-1090.87,0.00021917,2]
[402033181,1768488644236,-500.0,0.00021917,2]
[402033183,1768488644245,-500.0,0.00021917,2]
[402033185,1768488644254,-750.68,0.00021917,2]
[402033187,1768488644263,-1594.9,0.00021917,2]
[402033189,1768488644272,-500.0,0.00021917,2]
[402033191,1768488644281,-500.0,0.00021917,2]
[402033193,1768488644290,-500.0,0.00021917,2]
[402033195,1768488644299,-500.0,0.00021917,2]
[402033196,1768488644308,-500.0,0.00021917,2]
[402033198,1768488644317,-500.0,0.00021917,2]
[402033200,1768488644329,-500.0,0.00021917,2]
[402033202,1768488644339,-500.0,0.00021917,2]
[402033204,1768488644347,-500.0,0.00021917,2]
[402033206,1768488644357,-2108.59,0.00021917,2]
[402033208,1768488644366,-1014.97,0.00021917,2]
[402033210,1768488644376,-536.91,0.00021917,2]
[402033212,1768488644386,-500.0,0.00021917,2]
[402033214,1768488644395,-500.0,0.00021917,2]
[402033216,1768488644404,-500.0,0.00021917,2]
[402033218,1768488644414,-500.0,0.00021917,2]
[402033220,1768488644424,-500.0,0.00021917,2]
[402033222,1768488644433,-500.0,0.00021917,2]
[402033224,1768488644443,-500.0,0.00021917,2]
[402033226,1768488644452,-667.89,0.00021917,2]
[402033228,1768488644461,-500.0,0.00021917,2]
[402033230,1768488644471,-1683.36,0.00021917,2]
[402033232,1768488644480,-500.0,0.00021917,2]